fUSD/lending_fUSD_20250120
["ID","MTS","AMOUNT","RATE_DAILY","PERIOD"]
[349659398,1737360649461,-500.0,0.00020044,2]
[349659399,1737360649475,-749.0,0.00020044,2]
[349659400,1737360649488,-951.77,0.00020044,2]
[349659401,1737360649501,-500.0,0.00020044,2]
[349659402,1737360649514,-675.08,0.00020044,2]
[349659403,1737360649527,-500.0,0.00020044,2]
[349659404,1737360649539,-1643.69,0.00020044,2]
[349659405,1737360649552,-3361.2,0.00020044,2]
[349659406,1737360649564,-500.0,0.00020044,2]
[349659407,1737360649577,-500.0,0.00020044,2]
[349659408,1737360649590,-500.0,0.00020044,2]
[349659409,1737360649604,-653.51,0.00020044,2]
[349659410,1737360649618,-4253.23,0.00020044,2]
[349659411,1737360649631,-500.0,0.00020044,2]
[349659412,1737360649645,-1552.47,0.00020044,2]
[349659413,1737360649659,-500.0,0.00020044,2]
[349659414,1737360649669,-1797.77,0.00020044,2]
[349659415,1737360649678,-500.0,0.00020044,2]
[349659416,1737360649688,-500.0,0.00020044,2]
[349659417,1737360649697,-500.0,0.00020044,2]
[349659418,1737360649707,-500.0,0.00020044,2]
[349659419,1737360649716,-719.33,0.00020044,2]
[349659420,1737360649727,-500.0,0.00020044,2]
[349659421,1737360649736,-982.23,0.00020044,2]
[349659422,1737360649746,-4401.01,0.00020044,2]
[349659423,1737360649755,-832.68,0.00020044,2]
[349659424,1737360649764,-802.13,0.00020044,2]
[349659425,1737360649775,-1374.64,0.00020044,2]
[349659426,1737360649787,-500.0,0.00020044,2]
[349659427,1737360649796,-500.0,0.00020044,2]
[349659428,1737360649806,-500.0,0.00020044,2]
[349659429,1737360649817,-1195.0,0.00020044,2]
[349659430,1737360649826,-519.74,0.00020044,2]
[349659431,1737360649836,-596.13,0.00020044,2]
[349659432,1737360650060,-784.8,0.00020044,2]
[349659433,1737360650078,-617.54,0.00020044,2]
[349659434,1737360650088,-500.0,0.00020044,2]
[349659435,1737360650097,-536.8,0.00020044,2]
[349659436,1737360650106,-500.0,0.00020044,2]
[349659437,1737360650115,-500.0,0.00020044,2]
[349659438,1737360650127,-500.0,0.00020044,2]
[349659439,1737360650136,-500.0,0.00020044,2]
[349659440,1737360650145,-500.0,0.00020044,2]
[349659441,1737360650155,-500.0,0.00020044,2]
[349659442,1737360650165,-500.0,0.00020044,2]
[349659443,1737360650174,-500.0,0.00020044,2]
[349659444,1737360650184,-500.0,0.00020044,2]
[349659445,1737360650193,-500.0,0.00020044,2]
[349659446,1737360650203,-590.08,0.00020044,2]
[349659447,1737360650212,-500.0,0.00020044,2]
[349659448,1737360650221,-883.58,0.00020044,2]
[349659449,1737360650231,-500.0,0.00020044,2]
[349659450,1737360650240,-589.94,0.00020044,2]
[349659451,1737360650249,-500.0,0.00020044,2]
[349659452,1737360650259,-1293.59,0.00020044,2]
[349659453,1737360650268,-500.0,0.00020044,2]
[349659454,1737360650277,-596.73,0.00020044,2]
[349659455,1737360650286,-1216.82,0.00020044,2]
[349659456,1737360650295,-637.9,0.00020044,2]
[349659457,1737360650305,-2534.26,0.00020044,2]
[349659458,1737360650314,-999.53,0.00020044,2]
[349659459,1737360650323,-500.0,0.00020044,2]
[349659460,1737360650333,-5253.06,0.00020044,2]
[349659461,1737360650342,-500.0,0.00020044,2]
[349659462,1737360650351,-500.0,0.00020045,2]
[349659463,1737360650361,-726.57,0.00020045,2]
[349659464,1737360650370,-500.0,0.00020045,2]
[349659465,1737360650380,-500.0,0.00020045,2]
[349659466,1737360650390,-500.0,0.00020045,2]
[349659467,1737360650400,-500.0,0.00020045,2]
[349659468,1737360650409,-704.15,0.00020045,2]
[349659469,1737360650419,-500.0,0.00020045,2]
[349659470,1737360650428,-569.54,0.00020045,2]
[349659471,1737360650437,-500.0,0.00020045,2]
[349659472,1737360650447,-500.0,0.00020045,2]
[349659473,1737360650456,-500.0,0.00020045,2]
[349659474,1737360650465,-500.0,0.00020045,2]
[349659475,1737360650475,-500.0,0.00020045,2]
[349659476,1737360650484,-500.0,0.00020045,2]
[349659477,1737360650492,-500.0,0.00020045,2]
[349659478,1737360650502,-244.39722095,0.00020045,2]
[349659479,1737360650511,-500.0,0.00020045,2]
[349659480,1737360650522,-500.0,0.00020045,2]
[349659481,1737360650531,-500.0,0.00020045,2]
[349659482,1737360650541,-953.91,0.00020045,2]
[349659483,1737360650550,-547.58,0.00020045,2]
[349659484,1737360650559,-1060.66,0.00020045,2]
[349659485,1737360650568,-1113.27,0.00020045,2]
[349659486,1737360650578,-500.0,0.00020045,2]
[349659487,1737360650587,-826.51,0.00020045,2]
[349659488,1737360650596,-519.76,0.00020045,2]
[349659489,1737360650606,-500.0,0.00020045,2]
[349659490,1737360650615,-500.0,0.00020045,2]
[349659491,1737360650625,-784.0,0.00020045,2]
[349659492,1737360650634,-806.63,0.00020045,2]
[349659493,1737360650643,-500.0,0.00020045,2]
[349659494,1737360650653,-642.56,0.00020045,2]
[349659495,1737360650662,-500.0,0.00020045,2]
[349659496,1737360650672,-796.48,0.00020045,2]
[349659497,1737360650681,-851.02,0.00020045,2]
[349659498,1737360650691,-500.0,0.00020045,2]
[349659499,1737360650700,-500.0,0.00020045,2]
[349659500,1737360650710,-500.0,0.00020045,2]
[349659501,1737360650719,-500.0,0.00020045,2]
[349659502,1737360650728,-500.0,0.00020045,2]
[349659503,1737360650738,-673.1,0.00020045,2]
[349659504,1737360650747,-500.0,0.00020045,2]
[349659505,1737360650756,-500.0,0.00020045,2]
[349659506,1737360650766,-500.0,0.00020045,2]
[349659507,1737360650776,-550.20425463,0.00020045,2]
[349659508,1737360650787,-500.0,0.00020045,2]
[349659509,1737360650796,-731.51,0.00020045,2]
[349659510,1737360650805,-394.68,0.00020045,2]
[349659511,1737360650816,-500.0,0.00020045,2]
[349659512,1737360650827,-500.0,0.00020045,2]
[349659513,1737360650837,-1396.49,0.00020045,2]
[349659514,1737360650846,-1122.889265,0.00020045,2]
[349659515,1737360650855,-500.0,0.00020045,2]
[349659516,1737360650866,-559.32,0.00020045,2]
[349659517,1737360650876,-1034.54,0.00020045,2]
[349659518,1737360650885,-1050.27,0.00020045,2]
[349659519,1737360650894,-579.55,0.00020045,2]
[349659520,1737360650903,-948.52,0.00020045,2]
[349659521,1737360650912,-538.91,0.00020045,2]
[349659522,1737360650921,-500.0,0.00020045,2]
[349659523,1737360650931,-500.0,0.00020045,2]
[349659524,1737360650940,-919.49,0.00020045,2]
[349659525,1737360650949,-500.0,0.00020045,2]
[349659526,1737360650959,-2571.98,0.00020045,2]
[349659527,1737360650969,-728.99,0.00020045,2]
[349659528,1737360650978,-500.0,0.00020045,2]
[349659529,1737360650987,-611.67,0.00020045,2]
[349659530,1737360650996,-500.0,0.00020045,2]
[349659531,1737360651007,-589.2,0.00020045,2]
[349659532,1737360651016,-2483.55,0.00020045,2]
[349659533,1737360651025,-1009.36,0.00020045,2]
[349659534,1737360651035,-500.0,0.00020045,2]
[349659535,1737360651045,-2509.41,0.00020045,2]
[349659536,1737360651054,-1286.01,0.00020045,2]
[349659537,1737360651063,-839.06,0.00020045,2]
[349659538,1737360651073,-1739.32,0.00020045,2]
[349659539,1737360651083,-659.07,0.00020045,2]
[349659540,1737360651092,-632.37,0.00020045,2]
[349659541,1737360651101,-500.0,0.00020045,2]
[349659542,1737360651110,-3764.12,0.00020045,2]
[349659543,1737360651122,-1335.6,0.00020045,2]
[349659544,1737360651131,-993.68,0.00020045,2]
[349659545,1737360651140,-500.0,0.00020045,2]
[349659546,1737360651149,-625.02,0.00020045,2]
[349659547,1737360651158,-500.0,0.00020045,2]
[349659548,1737360651167,-1289.39,0.00020045,2]
[349659549,1737360651176,-2612.96,0.00020045,2]
[349659550,1737360651185,-821.25,0.00020045,2]
[349659551,1737360651195,-1339.66,0.00020045,2]
[349659552,1737360651204,-1435.4,0.00020045,2]
[349659553,1737360651213,-646.15,0.00020045,2]
[349659554,1737360651222,-500.0,0.00020045,2]
[349659555,1737360651231,-500.0,0.00020045,2]
[349659556,1737360651240,-867.01,0.00020045,2]
[349659557,1737360651250,-500.0,0.00020045,2]
[349659558,1737360651259,-2723.73,0.00020045,2]
[349659559,1737360651269,-500.0,0.00020045,2]
[349659560,1737360651278,-903.02,0.00020045,2]
[349659561,1737360651286,-2451.02622065,0.00020045,2]
[349659562,1737360651526,-163.78377935,0.00020045,2]
[349659563,1737360651535,-500.0,0.00020045,2]
[349659564,1737360651544,-500.0,0.00020045,2]
[349659565,1737360651553,-500.0,0.00020046,2]
[349659566,1737360651562,-500.0,0.00020046,2]
[349659567,1737360651571,-505.2,0.00020046,2]
[349659568,1737360651580,-500.0,0.00020046,2]
[349659569,1737360651590,-500.0,0.00020046,2]
[349659570,1737360651599,-500.0,0.00020046,2]
[349659571,1737360651608,-500.0,0.00020046,2]
[349659572,1737360651617,-509.39522461,0.00020046,2]
[349659573,1737360651628,-500.0,0.00020046,2]
[349659574,1737360651637,-500.0,0.00020046,2]
[349659575,1737360651646,-500.0,0.00020046,2]
[349659576,1737360651655,-500.0,0.00020046,2]
[349659577,1737360651664,-500.0,0.00020046,2]
[349659578,1737360651673,-500.0,0.00020046,2]
[349659579,1737360651682,-500.0,0.00020046,2]
[349659580,1737360651691,-209.15568066,0.00020111,2]
[349659581,1737360651701,-315.69299106,0.00020166,2]
[349659582,1737360651710,-209.15568066,0.00020216,2]
[349659583,1737360651719,-1053.57,0.00020217,2]
[349659584,1737360651728,-1437.49,0.00020217,2]
[349659585,1737360651737,-869.48,0.00020217,2]
[349659586,1737360651746,-715.49,0.00020217,2]
[349659587,1737360651756,-1680.34,0.00020217,2]
[349659588,1737360651765,-1423.87,0.00020217,2]
[349659589,1737360651775,-1700.94,0.00020217,2]
[349659590,1737360651786,-511.12,0.00020217,2]
[349659591,1737360651795,-500.0,0.00020217,2]
[349659592,1737360651804,-1239.07,0.00020217,2]
[349659593,1737360651815,-500.0,0.00020217,2]
[349659594,1737360651824,-926.5,0.00020217,2]
[349659595,1737360651833,-2749.06,0.00020217,2]
[349659596,1737360651843,-2155.0,0.00020217,2]
[349659597,1737360651852,-1250.04,0.00020217,2]
[349659598,1737360651861,-594.7,0.00020217,2]
[349659599,1737360651872,-500.0,0.00020217,2]
[349659600,1737360651881,-1573.24,0.00020217,2]
[349659601,1737360651890,-1042.93,0.00020217,2]
[349659602,1737360651899,-659.27,0.00020217,2]
[349659603,1737360651908,-567.02,0.00020217,2]
[349659604,1737360651917,-500.0,0.00020217,2]
[349659605,1737360651926,-1546.58,0.00020217,2]
[349659606,1737360651935,-500.0,0.00020217,2]
[349659607,1737360651944,-2643.28,0.00020217,2]
[349659608,1737360651953,-2168.69,0.00020217,2]
[349659609,1737360651963,-508.181723,0.00020217,2]
[349659610,1737360651972,-1427.02,0.00020218,2]
[349659611,1737360651982,-500.0,0.00020218,2]
[349659612,1737360651991,-500.04,0.00020218,2]
[349659613,1737360652000,-500.0,0.00020218,2]
[349659614,1737360652010,-1089.06,0.00020218,2]
[349659615,1737360652019,-1545.15,0.00020218,2]
[349659616,1737360652029,-1432.57,0.00020218,2]
[349659617,1737360652039,-692.28,0.00020218,2]
[349659618,1737360652049,-1782.05,0.00020218,2]
[349659619,1737360652058,-1393.91,0.00020218,2]
[349659620,1737360652068,-1186.22,0.00020218,2]
[349659621,1737360652078,-334.93,0.00020246,2]
[349659622,1737360652087,-180.83656366,0.00020291,2]
[349659623,1737360652098,-500.0,0.00020318,2]
[349659624,1737360652108,-500.0,0.00020318,2]
[349659625,1737360652118,-500.0,0.00020318,2]
[349659626,1737360652129,-500.0,0.00020318,2]
[349659627,1737360652139,-500.0,0.00020318,2]
[349659628,1737360652148,-500.0,0.00020318,2]
[349659629,1737360652158,-500.0,0.00020318,2]
[349659630,1737360652167,-500.0,0.00020318,2]
[349659631,1737360652176,-604.01,0.00020318,2]
[349659632,1737360652185,-500.0,0.00020318,2]
[349659633,1737360652195,-500.0,0.00020318,2]
[349659634,1737360652204,-603.13,0.00020318,2]
[349659635,1737360652214,-500.0,0.00020318,2]
[349659636,1737360652223,-666.31,0.00020318,2]
[349659637,1737360652232,-500.0,0.00020318,2]
[349659638,1737360652241,-500.0,0.00020318,2]
[349659639,1737360652251,-500.0,0.00020318,2]
[349659640,1737360652260,-500.0,0.00020318,2]
[349659641,1737360652269,-500.0,0.00020318,2]
[349659642,1737360652278,-500.0,0.00020318,2]
[349659643,1737360652287,-500.0,0.00020318,2]
[349659644,1737360652297,-679.34,0.00020318,2]
[349659645,1737360652306,-500.0,0.00020318,2]
[349659646,1737360652316,-638.5,0.00020318,2]
[349659647,1737360652325,-827.77,0.00020318,2]
[349659648,1737360652334,-500.0,0.00020318,2]
[349659649,1737360652343,-500.0,0.00020318,2]
[349659650,1737360652353,-500.0,0.00020318,2]
[349659651,1737360652362,-939.55,0.00020318,2]
[349659652,1737360652375,-716.46,0.00020318,2]
[349659653,1737360652385,-500.0,0.00020318,2]
[349659654,1737360652395,-500.0,0.00020318,2]
[349659655,1737360652403,-907.22,0.00020318,2]
[349659656,1737360652413,-635.77,0.00020318,2]
[349659657,1737360652422,-500.0,0.00020318,2]
[349659658,1737360652432,-500.0,0.00020318,2]
[349659659,1737360652441,-500.0,0.00020318,2]
[349659660,1737360652450,-1072.76,0.00020318,2]
[349659661,1737360652460,-500.0,0.00020318,2]
[349659662,1737360652469,-500.0,0.00020318,2]
[349659663,1737360652479,-500.0,0.00020318,2]
[349659664,1737360652488,-620.74,0.00020318,2]
[349659665,1737360652498,-1074.33,0.00020318,2]
[349659666,1737360652507,-199.92,0.00020318,2]
[349659667,1737360652516,-809.47,0.00020318,2]
[349659668,1737360652525,-500.0,0.00020318,2]
[349659669,1737360652534,-844.57,0.00020318,2]
[349659670,1737360652543,-500.0,0.00020318,2]
[349659671,1737360652553,-785.04,0.00020318,2]
[349659672,1737360652563,-612.23,0.00020318,2]
[349659673,1737360652572,-500.0,0.00020318,2]
[349659674,1737360652582,-749.0,0.00020318,2]
[349659675,1737360652591,-951.77,0.00020318,2]
[349659676,1737360652600,-500.0,0.00020318,2]
[349659677,1737360652610,-675.08,0.00020318,2]
[349659678,1737360652618,-500.0,0.00020318,2]
[349659679,1737360652630,-1643.69,0.00020318,2]
[349659680,1737360652639,-3361.2,0.00020318,2]
[349659681,1737360652648,-500.0,0.00020318,2]
[349659682,1737360652657,-500.0,0.00020318,2]
[349659683,1737360652666,-500.0,0.00020318,2]
[349659684,1737360652675,-653.51,0.00020318,2]
[349659685,1737360652684,-4253.23,0.00020318,2]
[349659686,1737360652693,-500.0,0.00020318,2]
[349659687,1737360652704,-1552.47,0.00020318,2]
[349659688,1737360652713,-500.0,0.00020318,2]
[349659689,1737360652722,-1797.77,0.00020318,2]
[349659690,1737360652731,-500.0,0.00020318,2]
[349659691,1737360652741,-500.0,0.00020318,2]
[349659692,1737360652752,-500.0,0.00020318,2]
[349659693,1737360652761,-719.33,0.00020318,2]
[349659694,1737360652774,-500.0,0.00020318,2]
[349659695,1737360652783,-982.23,0.00020318,2]
[349659696,1737360652792,-4401.01,0.00020318,2]
[349659697,1737360652802,-832.68,0.00020318,2]
[349659698,1737360652957,-802.13,0.00020318,2]
[349659699,1737360652967,-1374.64,0.00020318,2]
[349659700,1737360652977,-500.0,0.00020318,2]
[349659701,1737360652987,-500.0,0.00020318,2]
[349659702,1737360652997,-500.0,0.00020318,2]
[349659703,1737360653007,-1195.0,0.00020318,2]
[349659704,1737360653017,-519.74,0.00020318,2]
[349659705,1737360653026,-596.13,0.00020318,2]
[349659706,1737360653035,-784.8,0.00020318,2]
[349659707,1737360653045,-617.54,0.00020318,2]
[349659708,1737360653055,-536.8,0.00020318,2]
[349659709,1737360653064,-500.0,0.00020318,2]
[349659710,1737360653073,-500.0,0.00020318,2]
[349659711,1737360653082,-500.0,0.00020318,2]
[349659712,1737360653091,-500.0,0.00020318,2]
[349659713,1737360653100,-500.0,0.00020318,2]
[349659714,1737360653109,-500.0,0.00020318,2]
[349659715,1737360653119,-500.0,0.00020318,2]
[349659716,1737360653130,-500.0,0.00020318,2]
[349659717,1737360653140,-500.0,0.00020318,2]
[349659718,1737360653149,-590.08,0.00020318,2]
[349659719,1737360653158,-790.74990596,0.00020318,2]
[349659720,1737360656577,500.0,0.00018164,2]
[349659721,1737360678386,272.35147336,0.00014781,7]
[349659722,1737360678412,3156.5893298,0.00014781,7]
[349659724,1737360963198,205.26922377,0.00023,120]
[349659725,1737360990780,150.0,0.00021529,120]
[349659729,1737361184822,226.94,0.00010137,2]
[349659730,1737361204011,1715.56246217,0.00024,120]
[349659732,1737361205230,653.50632515,0.00024,120]
[349659735,1737361281293,2500.0,0.0001977,120]
[349659736,1737361281506,2556.9336159,0.00020044,120]
[349659738,1737361391471,345.497024,0.00023333,120]
[349659739,1737361393446,2000.0,0.00023333,120]
[349659740,1737361494649,-500.0,0.00018885,30]
[349659745,1737361563500,2791.59884992,0.0001,2]
[349659746,1737361632573,2273.8302811,0.00021,120]
[349659747,1737361633317,1393.78350503,0.00022,120]
[349659748,1737361672583,175.08841236,0.0002,120]
[349659749,1737361683229,41302.98503952,0.0001,2]
[349659752,1737361723894,258.54361613,0.00022,120]
[349659757,1737361726956,800.0,0.00021,120]
[349659758,1737361727479,195.78,0.0002,120]
[349659760,1737361767197,-500.0,0.00014,2]
[349659761,1737361767219,-4708.8788168,0.0001429,2]
[349659762,1737361767240,-1757.77537063,0.0001439,2]
[349659763,1737361767261,-1772.6230269,0.000146,2]
[349659764,1737361767282,-500.0,0.000147,2]
[349659765,1737361767303,-2877.00785,0.00014707,2]
[349659766,1737361767324,-2768.40213415,0.00014781,7]
[349659767,1737361767346,-1771.35835842,0.00014781,7]
[349659768,1737361767367,-527.95420752,0.00014888,2]
[349659769,1737361767388,-550.0,0.00015,2]
[349659770,1737361767410,-158.13844959,0.00015392,2]
[349659771,1737361767429,-167.83,0.00015492,2]
[349659772,1737361767453,-15375.648575,0.00016,2]
[349659773,1737361767474,-874.82,0.00016427,2]
[349659774,1737361767495,-226.94,0.00016813,2]
[349659775,1737361767516,-200.0,0.00017824,2]
[349659776,1737361767536,-250.0,0.00017868,2]
[349659777,1737361767556,-500.0,0.00017918,2]
[349659778,1737361767577,-22672.33035742,0.00018,3]
[349659809,1737361831544,-170.72,0.00014447,2]
[349659812,1737361831554,-260.4528605,0.00017899,2]
[349659813,1737361831652,-1273.50282656,0.00017899,2]
[349659814,1737361831865,-1067.999999,0.00017899,2]
[349659815,1737361831877,-975.1000014,0.00017899,2]
[349659816,1737361832001,-362.5618805,0.00017899,2]
[349660344,1737361837426,-3308.00467726,0.00017899,2]
[349660365,1737361837538,-5385.208,0.00017899,2]
[349660367,1737361837549,-3209.93059828,0.00017899,2]
[349660375,1737361837602,-3323.03149711,0.00017899,2]
[349660378,1737361837611,-517.60358103,0.000179,2]
[349660381,1737361837621,-1266.95469486,0.000179,2]
[349660384,1737361837632,-14430.04530514,0.000179,2]
[349660386,1737361837641,-300.0,0.00017999,2]
[349660388,1737361837651,-315.45349407,0.00018,3]
[349660391,1737361837661,-387.71024023,0.00018,5]
[349660392,1737361837671,-170.72,0.00018059,2]
[349660395,1737361837680,-167.96,0.00018059,2]
[349660397,1737361837690,-810.3,0.00018075,2]
[349660399,1737361837699,-171.09,0.00018082,2]
[349660401,1737361837707,-305.85,0.000181,2]
[349660403,1737361837717,-500.0,0.00018164,2]
[349660405,1737361837726,-600.0,0.00018164,2]
[349660406,1737361837735,-250.0,0.00018204,2]
[349660408,1737361837745,-250.0,0.00018208,2]
[349660411,1737361837754,-5559.0,0.000183,3]
[349660412,1737361837764,-2580.62,0.00018305,2]
[349660414,1737361837773,-249.4,0.00018452,2]
[349660416,1737361837783,-2547.75,0.00018478,2]
[349660419,1737361837792,-1000.0,0.00018478,2]
[349660421,1737361837802,-1816.41539046,0.0001855,2]
[349660423,1737361837814,-5216.09460954,0.0001855,2]
[349660425,1737361837823,-1134.29,0.00018679,2]
[349660427,1737361837832,-874.82,0.00018691,2]
[349660428,1737361837842,-5559.0,0.000187,5]
[349660431,1737361837854,-150.0,0.0001871,2]
[349660432,1737361837864,-156.75,0.00018885,30]
[349660434,1737361837874,-543.67,0.00018973,2]
[349660436,1737361837884,-875.76,0.00019052,2]
[349660438,1737361837893,-600.0,0.0001926,2]
[349660440,1737361837902,-169.52,0.00019365,2]
[349660442,1737361837911,-249.4,0.00019374,2]
[349660444,1737361837920,-171.09,0.0001942,2]
[349660446,1737361837929,-2857.0,0.00019448,2]
[349660448,1737361837938,-154.22328554,0.0001947,2]
[349660450,1737361837949,-641.374,0.00019496,2]
[349660452,1737361837958,-148.85460492,0.00019497,2]
[349660454,1737361837970,-435.88539508,0.00019497,2]
[349660456,1737361837980,-500.0,0.00019497,2]
[349660458,1737361837989,-500.0,0.00019497,2]
[349660460,1737361837998,-610.94329177,0.00019497,2]
[349660462,1737361838008,-684.19,0.00019497,2]
[349660464,1737361838017,-500.0,0.00019497,2]
[349660466,1737361838026,-500.0,0.00019497,2]
[349660468,1737361838035,-500.0,0.00019497,2]
[349660470,1737361838045,-657.74,0.00019497,2]
[349660472,1737361838054,-500.0,0.00019497,2]
[349660474,1737361838063,-531.84,0.00019497,2]
[349660476,1737361838072,-500.0,0.00019497,2]
[349660478,1737361838081,-500.0,0.00019497,2]
[349660480,1737361838090,-500.0,0.00019497,2]
[349660482,1737361838100,-500.0,0.00019497,2]
[349660484,1737361838109,-500.0,0.00019497,2]
[349660486,1737361838118,-500.0,0.00019497,2]
[349660488,1737361838129,-500.0,0.00019497,2]
[349660490,1737361838143,-500.0,0.00019497,2]
[349660492,1737361838153,-500.0,0.00019497,2]
[349660494,1737361838162,-500.0,0.00019497,2]
[349660496,1737361838171,-500.0,0.00019497,2]
[349660498,1737361838182,-500.0,0.00019497,2]
[349660500,1737361838192,-500.0,0.00019497,2]
[349660503,1737361838201,-515.64,0.00019497,2]
[349660505,1737361838212,-895.39,0.00019497,2]
[349660507,1737361838222,-1145.99,0.00019497,2]
[349660509,1737361838231,-1210.51,0.00019497,2]
[349660511,1737361838240,-500.0,0.00019497,2]
[349660513,1737361838250,-500.0,0.00019497,2]
[349660514,1737361838261,-500.0,0.00019497,2]
[349660517,1737361838270,-771.98,0.00019497,2]
[349660518,1737361838279,-528.36,0.00019497,2]
[349660520,1737361838289,-565.8,0.00019497,2]
[349660522,1737361838298,-500.0,0.00019497,2]
[349660524,1737361838308,-500.0,0.00019497,2]
[349660526,1737361838317,-756.5,0.00019497,2]
[349660528,1737361838326,-500.0,0.00019497,2]
[349660530,1737361838335,-500.0,0.00019497,2]
[349660532,1737361838344,-774.06,0.00019497,2]
[349660534,1737361838359,-500.0,0.00019497,2]
[349660537,1737361838368,-598.64,0.00019497,2]
[349660538,1737361838378,-762.8,0.00019497,2]
[349660540,1737361838387,-500.0,0.00019497,2]
[349660542,1737361838396,-500.0,0.00019497,2]
[349660544,1737361838406,-855.34,0.00019497,2]
[349660546,1737361838415,-500.0,0.00019497,2]
[349660548,1737361838425,-500.0,0.00019497,2]
[349660550,1737361838434,-500.0,0.00019497,2]
[349660553,1737361838445,-500.0,0.00019497,2]
[349660554,1737361838455,-500.0,0.00019497,2]
[349660556,1737361838465,-500.0,0.00019497,2]
[349660559,1737361838476,-632.15,0.00019497,2]
[349660560,1737361838485,-500.0,0.00019497,2]
[349660562,1737361838495,-500.0,0.00019497,2]
[349660564,1737361838504,-500.0,0.00019497,2]
[349660567,1737361838516,-500.0,0.00019497,2]
[349660569,1737361838525,-737.6,0.00019497,2]
[349660571,1737361838535,-500.0,0.00019497,2]
[349660573,1737361838543,-500.0,0.00019497,2]
[349660575,1737361838553,-500.0,0.00019497,2]
[349660577,1737361838562,-520.66,0.00019497,2]
[349660579,1737361838571,-500.0,0.00019497,2]
[349660581,1737361838581,-910.08,0.00019497,2]
[349660583,1737361838589,-500.0,0.00019497,2]
[349660585,1737361838602,-500.0,0.00019497,2]
[349660587,1737361838611,-708.44,0.00019497,2]
[349660589,1737361838620,-584.29,0.00019497,2]
[349660591,1737361838630,-500.0,0.00019497,2]
[349660593,1737361838639,-773.14,0.00019497,2]
[349660608,1737361838768,-500.0,0.00019497,2]
[349660610,1737361838779,-986.41,0.00019497,2]
[349660612,1737361838790,-597.48,0.00019497,2]
[349660614,1737361838799,-1422.12,0.00019497,2]
[349660616,1737361838809,-817.22,0.00019497,2]
[349660618,1737361838818,-615.99,0.00019497,2]
[349660619,1737361838827,-514.67,0.00019497,2]
[349660620,1737361838837,-740.0369452,0.000195,2]
[349660621,1737361838846,-300.86,0.00019534,2]
[349660622,1737361838860,-166.67,0.00019543,2]
[349660623,1737361838869,-182.69146865,0.00019569,2]
[349660624,1737361838879,-3157.993,0.00019569,2]
[349660625,1737361838888,-133259.859,0.0001957,2]
[349660627,1737361838898,-417.17402525,0.0001957,2]
[349660629,1737361838907,-500.0,0.0001957,2]
[349660631,1737361838916,-1943.07323485,0.0001961,2]
[349660633,1737361838926,-420.0,0.00019639,2]
[349660635,1737361838935,-835.30277608,0.00019668,2]
[349660637,1737361838945,-500.0,0.00019668,2]
[349660639,1737361838954,-500.0,0.00019668,2]
[349660641,1737361838964,-500.0,0.00019668,2]